fUST/lending_fUST_20251027
["ID","MTS","AMOUNT","RATE_DAILY","PERIOD"]
[392449762,1761494470091,1999.0,0.00030136,120]
[392449763,1761494497923,3228.7,0.00030137,120]
[392449783,1761494702285,5000.0,0.0001825,9]
[392449784,1761494714792,1999.0,0.00030136,120]
[392449785,1761494724641,5000.0,0.0001825,9]
[392449913,1761494966039,1999.0,0.00030136,120]
[392449914,1761494998491,165.658393,0.00013699,2]
[392449942,1761495032395,-200.0,0.00017212,2]
[392449943,1761495032404,-200.0,0.00017562,2]
[392449945,1761495032413,-125.22420029,0.00017739,2]
[392449947,1761495032425,-107.30773171,0.00017739,2]
[392449949,1761495032434,-164.42682937,0.00018,2]
[392449950,1761495032442,-198.79633639,0.00018,2]
[392449952,1761495032452,-619.45165583,0.00018,2]
[392449953,1761495032461,-300.0,0.00018056,2]
[392449954,1761495032470,-5889.4725496,0.00018057,2]
[392449955,1761495032479,-3903.9866576,0.00018057,2]
[392449956,1761495032488,-3269.1174549,0.00018057,2]
[392449957,1761495032497,-160.0,0.000181,2]
[392449958,1761495032506,-198.79633639,0.000182,2]
[392449959,1761495032515,-619.45165583,0.000182,2]
[392449960,1761495032525,-1906.69078722,0.00018323,2]
[392449961,1761495032534,-198.79633639,0.000184,2]
[392449962,1761495032543,-619.45165583,0.000184,2]
[392449963,1761495032553,-300.0,0.00018417,2]
[392449964,1761495032562,-300.0,0.00018417,2]
[392449966,1761495032571,-300.0,0.00018417,2]
[392449968,1761495032580,-300.0,0.00018417,2]
[392449969,1761495032589,-300.0,0.00018417,2]
[392449971,1761495032598,-300.0,0.00018417,2]
[392449972,1761495032607,-300.0,0.00018417,2]
[392449973,1761495032616,-300.0,0.00018417,2]
[392449974,1761495032626,-300.0,0.00018417,2]
[392449975,1761495032635,-300.0,0.00018417,2]
[392449976,1761495032644,-300.0,0.00018417,2]
[392449977,1761495032653,-300.0,0.00018417,2]
[392449978,1761495032664,-300.0,0.00018417,2]
[392449979,1761495032674,-300.0,0.00018417,2]
[392449980,1761495032684,-300.0,0.00018417,2]
[392449981,1761495032694,-448.76,0.00018456,2]
[392449982,1761495032703,-198.79633639,0.000185,2]
[392449983,1761495032712,-619.45165583,0.000185,2]
[392449984,1761495032723,-7030.0,0.00018697,2]
[392449985,1761495032733,-619.45165583,0.000187,2]
[392449986,1761495032743,-600.0,0.00018784,2]
[392449987,1761495032753,-675.98690971,0.00018973,2]
[392449988,1761495032762,-1060.35776617,0.00019067,2]
[392449989,1761495032772,-540.36682946,0.00019067,2]
[392449990,1761495032781,-11836.00452049,0.00019073,2]
[392449991,1761495032791,-402.7,0.00019153,3]
[392449992,1761495032800,-201.35,0.00019153,3]
[392449993,1761495032809,-604.05,0.00019153,3]
[392449994,1761495032818,-181.1532238,0.00019162,2]
[392449995,1761495032827,-569.74742366,0.00019162,2]
[392449996,1761495032836,-155.0,0.00019162,2]
[392449997,1761495032846,-244772.0,0.00019163,2]
[392449998,1761495032855,-1000.0,0.00019167,2]
[392449999,1761495032864,-1000.0,0.00019167,2]
[392450000,1761495032874,-1000.0,0.00019167,2]
[392450001,1761495032884,-1000.0,0.00019167,2]
[392450002,1761495032893,-1000.0,0.00019167,2]
[392450003,1761495032903,-1000.0,0.00019167,2]
[392450004,1761495032912,-1000.0,0.00019167,2]
[392450005,1761495032921,-48.36819718,0.00019167,2]
[392450006,1761495032939,-951.63180282,0.00019167,2]
[392450007,1761495032948,-528.36822218,0.00019167,2]
[392450008,1761495032963,-471.63177782,0.00019167,2]
[392450009,1761495032975,-509.89086683,0.00019167,2]
[392450010,1761495032985,-500.0,0.00019173,2]
[392450011,1761495032995,-500.0,0.00019173,2]
[392450012,1761495033005,-500.28483022,0.00019173,2]
[392450013,1761495033014,-500.0,0.00019173,2]
[392450014,1761495033024,-500.0,0.00019173,2]
[392450015,1761495033033,-500.0,0.00019173,2]
[392450016,1761495033043,-500.0,0.00019173,2]
[392450017,1761495033052,-500.0,0.00019173,2]
[392450018,1761495033062,-513.56847556,0.00019173,2]
[392450019,1761495033071,-500.0,0.00019173,2]
[392450020,1761495033081,-500.0,0.00019173,2]
[392450021,1761495033091,-501.40317172,0.00019173,2]
[392450022,1761495033100,-500.0,0.00019173,2]
[392450023,1761495033110,-500.0,0.00019173,2]
[392450024,1761495033119,-500.0,0.00019173,2]
[392450025,1761495033129,-500.0,0.00019173,2]
[392450026,1761495033139,-500.0,0.00019173,2]
[392450027,1761495033148,-500.0,0.00019173,2]
[392450028,1761495033157,-508.59178274,0.00019173,2]
[392450029,1761495033166,-500.0,0.00019173,2]
[392450030,1761495033176,-500.0,0.00019173,2]
[392450031,1761495033266,-500.0,0.00019173,2]
[392450032,1761495033276,-500.0,0.00019173,2]
[392450033,1761495033285,-500.0,0.00019173,2]
[392450034,1761495033295,-330.94664476,0.00019173,2]
[392450035,1761495033304,-500.0,0.00019173,2]
[392450036,1761495033314,-500.0,0.00019173,2]
[392450037,1761495033323,-500.0,0.00019173,2]
[392450038,1761495033332,-500.0,0.00019173,2]
[392450039,1761495033342,-500.0,0.00019173,2]
[392450040,1761495033351,-500.0,0.00019173,2]
[392450041,1761495033360,-505.42058958,0.00019173,2]
[392450042,1761495033369,-500.0,0.00019173,2]
[392450043,1761495033378,-501.23282432,0.00019173,2]
[392450044,1761495033388,-500.0,0.00019173,2]
[392450045,1761495033397,-500.0,0.00019173,2]
[392450046,1761495033407,-500.0,0.00019173,2]
[392450047,1761495033417,-500.0,0.00019173,2]
[392450048,1761495033427,-500.0,0.00019173,2]
[392450049,1761495033436,-500.0,0.00019173,2]
[392450050,1761495033446,-503.86434933,0.00019173,2]
[392450051,1761495033455,-500.0,0.00019173,2]
[392450052,1761495033465,-500.0,0.00019173,2]
[392450053,1761495033474,-5000.0,0.00019178,2]
[392450054,1761495033483,-3185.76161747,0.00019178,2]
[392450055,1761495033493,-151.0,0.00019178,2]
[392450056,1761495033502,-157.85748,0.00019178,2]
[392450057,1761495033512,-152.894251,0.00019178,2]
[392450058,1761495033522,-151.0,0.00019178,2]
[392450059,1761495033531,-151.0,0.00019178,2]
[392450060,1761495033540,-225.923811,0.00019178,2]
[392450061,1761495033550,-155.474641,0.00019178,2]
[392450062,1761495033559,-151.0,0.00019178,2]
[392450063,1761495033568,-283.06726,0.00019178,2]
[392450064,1761495033578,-152.83778,0.00019178,2]
[392450065,1761495033587,-221.195704,0.00019178,2]
[392450066,1761495033596,-152.861958,0.00019178,2]
[392450067,1761495033606,-151.0,0.00019178,2]
[392450068,1761495033615,-153.655639,0.00019178,2]
[392450069,1761495033625,-151.0,0.00019178,2]
[392450070,1761495033635,-151.0,0.00019178,2]
[392450071,1761495033644,-157.187979,0.00019178,2]
[392450072,1761495033653,-496.984612,0.00019178,2]
[392450073,1761495033663,-496.984612,0.00019178,2]
[392450074,1761495033672,-496.984612,0.00019178,2]
[392450075,1761495033681,-496.984612,0.00019178,2]
[392450076,1761495033690,-496.984612,0.00019178,2]
[392450077,1761495033699,-496.984612,0.00019178,2]
[392450078,1761495033708,-496.984612,0.00019178,2]
[392450079,1761495033718,-496.984612,0.00019178,2]
[392450080,1761495033727,-496.984612,0.00019178,2]
[392450081,1761495033736,-496.984612,0.00019178,2]
[392450082,1761495033746,-496.984612,0.00019178,2]
[392450083,1761495033756,-496.984612,0.00019178,2]
[392450084,1761495033765,-496.984612,0.00019178,2]
[392450085,1761495033776,-496.984612,0.00019178,2]
[392450086,1761495033797,-496.984612,0.00019178,2]
[392450087,1761495033813,-496.984612,0.00019178,2]
[392450088,1761495033832,-496.984612,0.00019178,2]
[392450089,1761495033850,-496.984612,0.00019178,2]
[392450090,1761495033869,-496.984612,0.00019178,2]
[392450091,1761495033886,-496.984613,0.00019178,2]
[392450092,1761495033904,-151.0,0.00019178,2]
[392450093,1761495033919,-151.0,0.00019178,2]
[392450094,1761495033938,-151.0,0.00019178,2]
[392450095,1761495033956,-12.45829972,0.00019178,2]
[392450096,1761495033982,-138.54170028,0.00019178,2]
[392450097,1761495033996,-168.960833,0.00019178,2]
[392450098,1761495034013,-151.0,0.00019178,2]
[392450099,1761495034030,-152.637935,0.00019178,2]
[392450100,1761495034045,-151.0,0.00019178,2]
[392450101,1761495034059,-151.0,0.00019178,2]
[392450102,1761495034075,-8.81986455,0.00019178,2]
[392450114,1761495038297,-195.25612313,0.00018,2]
[392450115,1761495038307,-142.18013545,0.00019178,2]
[392450116,1761495038316,-151.0,0.00019178,2]
[392450117,1761495038325,-52.76331538,0.00019178,2]
[392450179,1761495040512,-500.0,0.00019167,2]
[392450181,1761495040523,-98.23668462,0.00019178,2]
[392450183,1761495040533,-259.026241,0.00019178,2]
[392450185,1761495040543,-151.0,0.00019178,2]
[392450187,1761495040552,-151.0,0.00019178,2]
[392450189,1761495040562,-151.0,0.00019178,2]
[392450191,1761495040572,-253.18876,0.00019178,2]
[392450193,1761495040582,-151.0,0.00019178,2]
[392450195,1761495040591,-151.0,0.00019178,2]
[392450197,1761495040601,-155.841694,0.00019178,2]
[392450199,1761495040611,-151.0,0.00019178,2]
[392450202,1761495040621,-151.0,0.00019178,2]
[392450204,1761495040631,-151.0,0.00019178,2]
[392450206,1761495040640,-157.833522,0.00019178,2]
[392450208,1761495040650,-151.0,0.00019178,2]
[392450210,1761495040659,-151.0,0.00019178,2]
[392450212,1761495040669,-151.0,0.00019178,2]
[392450214,1761495040678,-151.0,0.00019178,2]
[392450216,1761495040688,-151.0,0.00019178,2]
[392450218,1761495040697,-151.0,0.00019178,2]
[392450219,1761495040707,-151.0,0.00019178,2]
[392450221,1761495040716,-157.911404,0.00019178,2]
[392450223,1761495040726,-151.0,0.00019178,2]
[392450225,1761495040735,-158.541187,0.00019178,2]
[392450227,1761495040745,-155.505965,0.00019178,2]
[392450229,1761495040754,-151.0,0.00019178,2]
[392450231,1761495040764,-151.0,0.00019178,2]
[392450233,1761495040773,-151.0,0.00019178,2]
[392450235,1761495040783,-151.0,0.00019178,2]
[392450237,1761495040792,-151.0,0.00019178,2]
[392450239,1761495040802,-151.0,0.00019178,2]
[392450241,1761495040812,-151.0,0.00019178,2]
[392450243,1761495040821,-152.9375,0.00019178,2]
[392450245,1761495040831,-151.0,0.00019178,2]
[392450247,1761495040840,-151.0,0.00019178,2]
[392450249,1761495040849,-151.0,0.00019178,2]
[392450251,1761495040859,-151.0,0.00019178,2]
[392450253,1761495040868,-151.0,0.00019178,2]
[392450255,1761495040877,-151.0,0.00019178,2]
[392450256,1761495040886,-151.0,0.00019178,2]
[392450259,1761495040896,-152.612677,0.00019178,2]
[392450260,1761495040905,-151.0,0.00019178,2]
[392450262,1761495040915,-151.0,0.00019178,2]
[392450264,1761495040928,-151.0,0.00019178,2]
[392450266,1761495040939,-151.0,0.00019178,2]
[392450268,1761495040953,-151.0,0.00019178,2]
[392450270,1761495040963,-151.0,0.00019178,2]
[392450272,1761495040974,-151.0,0.00019178,2]
[392450275,1761495040985,-151.0,0.00019178,2]
[392450276,1761495040996,-151.0,0.00019178,2]
[392450278,1761495041006,-153.030594,0.00019178,2]
[392450280,1761495041017,-151.0,0.00019178,2]
[392450282,1761495041026,-93.44008287,0.00019178,2]
[392450332,1761495043569,-398.82319656,0.00019161,2]
[392450333,1761495043579,-58.80803813,0.00019178,2]
[392450334,1761495043589,-151.0,0.00019178,2]
[392450335,1761495043600,-66.50876531,0.00019178,2]
[392450341,1761495046710,-84.49123469,0.00019178,2]
[392450342,1761495046719,-151.0,0.00019178,2]
[392450343,1761495046729,-151.0,0.00019178,2]
[392450344,1761495046738,-151.0,0.00019178,2]
[392450345,1761495046747,-151.0,0.00019178,2]
[392450346,1761495046756,-151.0,0.00019178,2]
[392450347,1761495046765,-35.58167122,0.00019178,2]
[392450349,1761495200846,1999.0,0.00030136,120]
[392450350,1761495245255,5000.0,0.0001825,9]
[392450351,1761495267551,2775.30940423,0.0001825,9]
[392450353,1761495439988,1999.0,0.00030136,120]
[392450360,1761495694566,1999.0,0.00030136,120]
[392450365,1761495758196,183.079199,0.00018016,120]
[392450366,1761495861695,393.59238983,0.00030136,120]
[392450370,1761495952507,1999.0,0.00030136,120]
[392450381,1761496116750,589.2191929,0.000149,2]
[392450382,1761496116991,1000.0,0.0001,2]
[392450420,1761496158548,1999.0,0.00030136,120]
[392450421,1761496161089,674.064732,0.00013699,2]
[392450472,1761496232556,-353.38128034,0.00017815,2]
[392450474,1761496232566,-200.0,0.00017815,2]
[392450475,1761496232575,-269.1409349,0.00017821,2]
[392450477,1761496232584,-2068.411851,0.00017915,2]
[392450478,1761496232594,-300.0,0.00017999,2]
[392450479,1761496232603,-1000.0,0.00018,5]
[392450480,1761496232612,-22685.52644702,0.00018,2]
[392450481,1761496232622,-183.079199,0.00018016,2]
[392450482,1761496232631,-300.0,0.00018359,2]
[392450483,1761496232641,-300.0,0.00018359,2]
[392450484,1761496232650,-300.0,0.00018359,2]
[392450485,1761496232659,-300.0,0.00018359,2]
[392450486,1761496232668,-300.0,0.00018359,2]
[392450487,1761496232678,-300.0,0.00018359,2]
[392450488,1761496232688,-300.0,0.00018359,2]
[392450489,1761496232697,-300.0,0.00018359,2]
[392450490,1761496232706,-300.0,0.00018359,2]
[392450491,1761496232715,-300.0,0.00018359,2]
[392450492,1761496232724,-300.0,0.00018359,2]
[392450493,1761496232734,-300.0,0.00018359,2]
[392450494,1761496232743,-300.0,0.00018359,2]
[392450495,1761496232752,-300.0,0.00018359,2]
[392450496,1761496232762,-300.0,0.00018359,2]
[392450497,1761496232771,-591.48854597,0.00018471,2]
[392450498,1761496232780,-443.05,0.00018499,2]
[392450499,1761496232789,-2000.0,0.000185,2]
[392450500,1761496232798,-443.05,0.00018571,2]
[392450501,1761496232809,-3617.98957962,0.00018571,2]
[392450502,1761496232819,-600.0,0.00018725,2]
[392450503,1761496232829,-1906.69078722,0.00018779,2]
[392450504,1761496232839,-152.75719993,0.0001889,2]
[392450505,1761496232850,-164.87466837,0.0001889,2]
[392450506,1761496232860,-403.49456409,0.00018899,2]
[392450507,1761496232870,-1906.69078722,0.0001904,2]
[392450508,1761496232879,-848.28621292,0.00019078,2]
[392450509,1761496232888,-201.35,0.00019168,3]
[392450510,1761496232907,-201.35,0.00019168,3]
[392450511,1761496232920,-1607.3385255,0.00019177,2]
[392450512,1761496232932,-1065.4652187,0.00019177,2]
[392450513,1761496232943,-279.17623759,0.00019177,2]
[392450514,1761496232952,-5000.0,0.00019178,2]
[392450515,1761496232963,-5000.0,0.00019178,2]
[392450516,1761496232973,-152.604116,0.00019178,2]
[392450517,1761496232983,-151.0,0.00019178,2]
[392450518,1761496232995,-151.0,0.00019178,2]
[392450519,1761496233004,-151.0,0.00019178,2]
[392450520,1761496233015,-151.0,0.00019178,2]
[392450521,1761496233024,-151.0,0.00019178,2]
[392450522,1761496233033,-151.0,0.00019178,2]
[392450523,1761496233043,-151.0,0.00019178,2]
[392450524,1761496233053,-151.0,0.00019178,2]
[392450525,1761496233063,-151.0,0.00019178,2]
[392450526,1761496233072,-151.0,0.00019178,2]
[392450527,1761496233081,-151.0,0.00019178,2]
[392450528,1761496233092,-151.0,0.00019178,2]
[392450529,1761496233102,-151.0,0.00019178,2]
[392450530,1761496233111,-247.166896,0.00019178,2]
[392450531,1761496233122,-152.285017,0.00019178,2]
[392450532,1761496233136,-151.923512,0.00019178,2]
[392450533,1761496233148,-151.756318,0.00019178,2]
[392450534,1761496233275,-151.0,0.00019178,2]
[392450535,1761496233286,-151.0,0.00019178,2]
[392450536,1761496233295,-151.0,0.00019178,2]
[392450537,1761496233305,-151.0,0.00019178,2]
[392450538,1761496233315,-151.0,0.00019178,2]
[392450539,1761496233324,-284.696269,0.00019178,2]
[392450540,1761496233334,-151.0,0.00019178,2]
[392450541,1761496233343,-151.0,0.00019178,2]
[392450542,1761496233352,-158.445455,0.00019178,2]
[392450543,1761496233361,-152.212611,0.00019178,2]
[392450544,1761496233371,-151.0,0.00019178,2]
[392450545,1761496233380,-151.0,0.00019178,2]
[392450546,1761496233389,-151.0,0.00019178,2]
[392450547,1761496233399,-167.07999,0.00019178,2]
[392450548,1761496233409,-151.0,0.00019178,2]
[392450549,1761496233423,-151.0,0.00019178,2]
[392450550,1761496233432,-152.094698,0.00019178,2]
[392450551,1761496233442,-151.0,0.00019178,2]
[392450552,1761496233451,-166.730369,0.00019178,2]
[392450553,1761496233463,-151.0,0.00019178,2]
[392450554,1761496233472,-154.012829,0.00019178,2]
[392450555,1761496233481,-151.0,0.00019178,2]
[392450556,1761496233494,-151.0,0.00019178,2]
[392450557,1761496233503,-151.0,0.00019178,2]
[392450558,1761496233513,-151.0,0.00019178,2]
[392450559,1761496233522,-151.0,0.00019178,2]
[392450560,1761496233531,-151.0,0.00019178,2]
[392450561,1761496233542,-151.0,0.00019178,2]
[392450562,1761496233551,-151.0,0.00019178,2]
[392450563,1761496233561,-151.0,0.00019178,2]
[392450564,1761496233571,-151.0,0.00019178,2]
[392450565,1761496233580,-151.0,0.00019178,2]
[392450566,1761496233590,-151.0,0.00019178,2]
[392450567,1761496233599,-151.0,0.00019178,2]
[392450568,1761496233608,-151.0,0.00019178,2]
[392450569,1761496233618,-151.0,0.00019178,2]
[392450570,1761496233627,-151.0,0.00019178,2]
[392450571,1761496233637,-151.0,0.00019178,2]
[392450572,1761496233646,-151.0,0.00019178,2]
[392450573,1761496233655,-284.078087,0.00019178,2]
[392450574,1761496233665,-151.0,0.00019178,2]
[392450575,1761496233674,-151.0,0.00019178,2]
[392450576,1761496233684,-151.0,0.00019178,2]
[392450577,1761496233693,-156.163166,0.00019178,2]
[392450578,1761496233702,-151.0,0.00019178,2]
[392450579,1761496233712,-151.0,0.00019178,2]
[392450580,1761496233723,-151.0,0.00019178,2]
[392450581,1761496233732,-151.0,0.00019178,2]
[392450582,1761496233742,-244.236153,0.00019178,2]
[392450583,1761496233752,-151.0,0.00019178,2]
[392450584,1761496233762,-151.0,0.00019178,2]
[392450585,1761496233771,-151.0,0.00019178,2]
[392450586,1761496233781,-151.0,0.00019178,2]
[392450587,1761496233791,-151.0,0.00019178,2]
[392450588,1761496233800,-151.0,0.00019178,2]
[392450589,1761496233810,-151.0,0.00019178,2]
[392450590,1761496233819,-212.610844,0.00019178,2]
[392450591,1761496233828,-151.0,0.00019178,2]
[392450592,1761496233838,-163.66515,0.00019178,2]
[392450593,1761496233849,-163.66515,0.00019178,2]
[392450594,1761496233858,-163.66515,0.00019178,2]
[392450595,1761496233869,-163.66515,0.00019178,2]
[392450596,1761496233885,-163.66515,0.00019178,2]
[392450597,1761496233896,-163.66515,0.00019178,2]
[392450598,1761496233907,-163.66515,0.00019178,2]
[392450599,1761496233917,-163.66515,0.00019178,2]
[392450600,1761496233926,-163.66515,0.00019178,2]
[392450601,1761496233937,-163.66515,0.00019178,2]
[392450602,1761496233950,-163.66515,0.00019178,2]
[392450603,1761496233960,-163.66515,0.00019178,2]
[392450604,1761496233971,-163.66515,0.00019178,2]
[392450605,1761496233980,-163.66515,0.00019178,2]
[392450606,1761496233991,-163.66515,0.00019178,2]
[392450607,1761496234001,-163.66515,0.00019178,2]
[392450608,1761496234011,-163.66515,0.00019178,2]
[392450609,1761496234023,-163.66515,0.00019178,2]
[392450610,1761496234033,-163.66515,0.00019178,2]
[392450611,1761496234044,-163.665152,0.00019178,2]
[392450612,1761496234055,-151.0,0.00019178,2]
[392450613,1761496234065,-156.178607,0.00019178,2]
[392450614,1761496234074,-155.083712,0.00019178,2]
[392450615,1761496234084,-151.0,0.00019178,2]
[392450616,1761496234093,-152.498424,0.00019178,2]
[392450617,1761496234103,-151.0,0.00019178,2]
[392450618,1761496234112,-151.0,0.00019178,2]
[392450619,1761496234121,-151.0,0.00019178,2]
[392450620,1761496234131,-151.0,0.00019178,2]
[392450621,1761496234140,-151.0,0.00019178,2]
[392450622,1761496234149,-151.0,0.00019178,2]
[392450623,1761496234159,-155.11046,0.00019178,2]
[392450624,1761496234169,-152.303217,0.00019178,2]
[392450625,1761496234178,-151.0,0.00019178,2]
[392450626,1761496234187,-151.0,0.00019178,2]
[392450627,1761496234196,-151.0,0.00019178,2]
[392450628,1761496234206,-202.665699,0.00019178,2]
[392450629,1761496234216,-151.0,0.00019178,2]
[392450630,1761496234225,-151.0,0.00019178,2]
[392450631,1761496234235,-151.0,0.00019178,2]
[392450632,1761496234244,-151.0,0.00019178,2]
[392450633,1761496234254,-151.0,0.00019178,2]
[392450634,1761496234263,-163.191301,0.00019178,2]
[392450635,1761496234273,-234.923397,0.00019178,2]
[392450636,1761496234282,-234.923397,0.00019178,2]
[392450637,1761496234292,-151.0,0.00019178,2]
[392450638,1761496234302,-234.923397,0.00019178,2]
[392450639,1761496234312,-234.923397,0.00019178,2]
[392450640,1761496234322,-154.024026,0.00019178,2]
[392450641,1761496234332,-234.923397,0.00019178,2]
[392450642,1761496234342,-234.923397,0.00019178,2]
[392450643,1761496234352,-234.923397,0.00019178,2]
[392450644,1761496234362,-234.923397,0.00019178,2]
[392450645,1761496234371,-234.923397,0.00019178,2]
[392450646,1761496234381,-234.923397,0.00019178,2]
[392450647,1761496234470,-234.923397,0.00019178,2]
[392450648,1761496234479,-234.923397,0.00019178,2]
[392450649,1761496234491,-234.923397,0.00019178,2]
[392450650,1761496234501,-234.923397,0.00019178,2]
[392450651,1761496234510,-234.923397,0.00019178,2]
[392450652,1761496234520,-234.923397,0.00019178,2]
[392450653,1761496234529,-234.923397,0.00019178,2]
[392450654,1761496234539,-151.378405,0.00019178,2]
[392450655,1761496234548,-234.923397,0.00019178,2]
[392450656,1761496234557,-234.923397,0.00019178,2]
[392450657,1761496234567,-234.923398,0.00019178,2]
[392450658,1761496234576,-151.0,0.00019178,2]
[392450659,1761496234585,-151.0,0.00019178,2]
[392450660,1761496234595,-151.0,0.00019178,2]
[392450661,1761496234604,-151.0,0.00019178,2]
[392450662,1761496234614,-151.0,0.00019178,2]
[392450663,1761496234623,-151.0,0.00019178,2]
[392450664,1761496234633,-151.0,0.00019178,2]
[392450665,1761496234642,-151.0,0.00019178,2]
[392450666,1761496234657,-151.0,0.00019178,2]
[392450667,1761496234666,-280.739714,0.00019178,2]
[392450668,1761496234676,-200.620598,0.00019178,2]
[392450669,1761496234685,-200.620598,0.00019178,2]
[392450670,1761496234695,-200.620598,0.00019178,2]
[392450671,1761496234704,-200.620598,0.00019178,2]
[392450672,1761496234713,-200.620598,0.00019178,2]
[392450673,1761496234722,-200.620598,0.00019178,2]
[392450674,1761496234732,-200.620598,0.00019178,2]
[392450675,1761496234741,-200.620598,0.00019178,2]
[392450676,1761496234750,-200.620598,0.00019178,2]
[392450677,1761496234760,-200.620598,0.00019178,2]
[392450678,1761496234769,-200.620598,0.00019178,2]
[392450679,1761496234778,-200.620598,0.00019178,2]
[392450680,1761496234788,-200.620598,0.00019178,2]
[392450681,1761496234797,-200.620598,0.00019178,2]
[392450682,1761496234806,-200.620598,0.00019178,2]
[392450683,1761496234825,-200.620598,0.00019178,2]
[392450684,1761496234836,-200.620598,0.00019178,2]
[392450685,1761496234847,-200.620598,0.00019178,2]
[392450686,1761496234857,-200.620598,0.00019178,2]
[392450687,1761496234867,-200.620606,0.00019178,2]
[392450688,1761496234877,-291.758751,0.00019178,2]
[392450689,1761496234887,-291.758751,0.00019178,2]
[392450690,1761496234897,-291.758751,0.00019178,2]
[392450691,1761496234907,-291.758751,0.00019178,2]
[392450692,1761496234916,-291.758751,0.00019178,2]
[392450693,1761496234926,-291.758751,0.00019178,2]
[392450694,1761496234937,-291.758751,0.00019178,2]
[392450695,1761496234947,-291.758751,0.00019178,2]
[392450696,1761496234957,-291.758751,0.00019178,2]
[392450697,1761496234967,-151.0,0.00019178,2]
[392450698,1761496234977,-291.758751,0.00019178,2]
[392450699,1761496235009,-151.0,0.00019178,2]
[392450700,1761496235032,-291.758751,0.00019178,2]
[392450701,1761496235053,-151.0,0.00019178,2]
[392450702,1761496235075,-291.758751,0.00019178,2]
[392450703,1761496235096,-156.338591,0.00019178,2]
[392450704,1761496235123,-291.758751,0.00019178,2]
[392450705,1761496235143,-291.758751,0.00019178,2]
[392450706,1761496235159,-291.758751,0.00019178,2]
[392450707,1761496235181,-291.758751,0.00019178,2]
[392450708,1761496235203,-291.758751,0.00019178,2]
[392450709,1761496235223,-291.758751,0.00019178,2]
[392450710,1761496235238,-291.758751,0.00019178,2]
[392450711,1761496235257,-291.758745,0.00019178,2]
[392450712,1761496235275,-151.0,0.00019178,2]
[392450713,1761496235291,-151.0,0.00019178,2]
[392450714,1761496235306,-151.0,0.00019178,2]
[392450715,1761496235324,-151.0,0.00019178,2]
[392450716,1761496235343,-155.160327,0.00019178,2]
[392450717,1761496235360,-151.0,0.00019178,2]
[392450718,1761496235376,-151.0,0.00019178,2]
[392450719,1761496235393,-151.0,0.00019178,2]
[392450720,1761496235408,-151.0,0.00019178,2]
[392450721,1761496235427,-151.0,0.00019178,2]
[392450722,1761496235444,-274.53293,0.00019178,2]
[392450723,1761496235459,-240.256639,0.00019178,2]
[392450724,1761496235475,-240.256639,0.00019178,2]
[392450725,1761496235491,-240.256639,0.00019178,2]
[392450726,1761496235512,-240.256639,0.00019178,2]
[392450727,1761496235530,-240.256639,0.00019178,2]
[392450728,1761496235549,-240.256639,0.00019178,2]
[392450729,1761496235566,-240.256639,0.00019178,2]
[392450730,1761496235583,-240.256639,0.00019178,2]
[392450731,1761496235599,-151.0,0.00019178,2]
[392450732,1761496235615,-240.256639,0.00019178,2]